fUSD/lending_fUSD_20250826
["ID","MTS","AMOUNT","RATE_DAILY","PERIOD"]
[381442176,1756199432008,-211.22,0.00021433,2]
[381442178,1756199432018,-200.0,0.00021529,2]
[381442180,1756199432028,-299.99,0.00021529,7]
[381442181,1756199432038,-250.0,0.00021689,2]
[381442183,1756199432049,-667.59,0.000219,2]
[381442185,1756199432059,-150.0,0.00022,2]
[381442187,1756199432070,-160.0,0.00022152,7]
[381442188,1756199432081,-16391.6145,0.00022203,2]
[381442193,1756199432193,-1000.0,0.00022203,2]
[381442194,1756199432204,-2500.0,0.00022323,2]
[381442195,1756199432215,-599.70609212,0.00022373,2]
[381442196,1756199432230,-500.0,0.00022422,2]
[381442198,1756199432240,-500.0,0.00022422,2]
[381442199,1756199432250,-500.0,0.00022422,2]
[381442200,1756199432260,-195.88682182,0.00022422,2]
[381442201,1756199432271,-158634.7262,0.00022423,2]
[381442202,1756199432280,-500.0,0.00022473,2]
[381442203,1756199432290,-600.30022113,0.00022473,2]
[381442204,1756199432303,-624.24866334,0.00022473,2]
[381442205,1756199432313,-500.0,0.00022473,2]
[381442206,1756199432325,-460.51275649,0.00022473,2]
[381442207,1756199432334,-500.0,0.00022473,2]
[381442208,1756199432344,-500.0,0.00022473,2]
[381442209,1756199432354,-500.0,0.00022473,2]
[381442210,1756199432364,-500.51116248,0.00022473,2]
[381442211,1756199432375,-220.5876818,0.00022473,2]
[381442212,1756199432385,-500.0,0.00022473,2]
[381442213,1756199432396,-2500.0,0.00022475,7]
[381442214,1756199432405,-2500.0,0.00022484,7]
[381442215,1756199432415,-2500.0,0.00022493,7]
[381442216,1756199432424,-2500.0,0.00022501,7]
[381442217,1756199432435,-212.18043798,0.00022501,7]
[381442218,1756199432446,-458.7662338,0.00022501,7]
[381442219,1756199432456,-2500.0,0.0002251,7]
[381442220,1756199432466,-2500.0,0.00022519,7]
[381442221,1756199432477,-2500.0,0.00022528,7]
[381442222,1756199432487,-2500.0,0.00022537,7]
[381442223,1756199432496,-2500.0,0.00022545,7]
[381442224,1756199432506,-2500.0,0.00022554,7]
[381442225,1756199432516,-2500.0,0.00022563,7]
[381442226,1756199432527,-2500.0,0.00022572,7]
[381442227,1756199432537,-2500.0,0.00022581,7]
[381442228,1756199432547,-2500.0,0.00022589,7]
[381442229,1756199432557,-2500.0,0.00022598,7]
[381442230,1756199432566,-2500.0,0.00022607,7]
[381442231,1756199432575,-177.40922456,0.00022613,2]
[381442232,1756199432585,-2500.0,0.00022616,7]
[381442233,1756199432596,-2500.0,0.00022625,7]
[381442234,1756199432606,-2500.0,0.00022633,7]
[381442235,1756199432618,-2500.0,0.00022642,7]
[381442236,1756199432629,-2500.0,0.00022651,7]
[381442237,1756199432640,-2500.0,0.0002266,7]
[381442238,1756199432652,-2500.0,0.00022669,7]
[381442239,1756199432663,-2500.0,0.00022677,7]
[381442240,1756199432676,-2500.0,0.00022686,7]
[381442241,1756199432687,-2500.0,0.00022695,7]
[381442242,1756199432696,-1000.0,0.00022703,2]
[381442243,1756199432707,-1000.0,0.00022703,2]
[381442244,1756199432718,-693.2307147,0.00022703,2]
[381442245,1756199432727,-2500.0,0.00022704,7]
[381442246,1756199432737,-2500.0,0.00022713,7]
[381442247,1756199432747,-2500.0,0.00022721,7]
[381442248,1756199432757,-2500.0,0.0002273,7]
[381442249,1756199432768,-2500.0,0.00022739,7]
[381442250,1756199432779,-2843.29957411,0.000228,2]
[381442251,1756199432789,-191.78,0.0002286,2]
[381442252,1756199432799,-734.86,0.00023,2]
[381442253,1756199432811,-160.0,0.00023121,2]
[381442254,1756199432821,-458.7662338,0.00023121,2]
[381442255,1756199432832,-844.63891918,0.00023121,2]
[381442256,1756199432841,-212.18043798,0.00023121,2]
[381442257,1756199432852,-599.70609208,0.00023622,2]
[381442258,1756199432864,-200.3,0.00023726,2]
[381442259,1756199432874,-1000.0,0.0002394,2]
[381442260,1756199432885,-160.0,0.00024,7]
[381442261,1756199432895,-185.87,0.00024028,2]
[381442262,1756199432905,-150.0,0.00024249,2]
[381442263,1756199432917,-150.0,0.00024258,2]
[381442264,1756199432929,-150.0,0.00024258,2]
[381442265,1756199432939,-150.0,0.00024258,2]
[381442266,1756199432951,-150.0,0.00024258,2]
[381442267,1756199432961,-315.61843563,0.00024258,2]
[381442268,1756199433069,-1418.79756437,0.00024258,2]
[381442269,1756199433080,-2136.61622608,0.00024258,2]
[381442270,1756199433214,-531.6387966,0.00024258,2]
[381442271,1756199433230,-705.74497732,0.00024258,2]
[381442272,1756199433240,-926.0,0.00024258,2]
[381442273,1756199433251,-473.64187781,0.00024258,2]
[381442275,1756199437515,-157.65,0.0002128,2]
[381442276,1756199437525,-157.65,0.00021429,2]
[381442277,1756199437535,-92.35812219,0.00024258,2]
[381442278,1756199437545,-1298.0,0.00024258,2]
[381442279,1756199437554,-1658.0,0.00024258,2]
[381442280,1756199437563,-599.0,0.00024258,2]
[381442281,1756199437574,-2135.17556902,0.00024258,2]
[381442282,1756199437586,-2019.82443098,0.00024258,2]
[381442283,1756199437596,-469.961,0.00024258,2]
[381442284,1756199437607,-3202.56656902,0.00024258,2]
[381442285,1756199437619,-302.29727213,0.00024258,2]
[381442286,1756199437666,-460.36906848,0.00024258,2]
[381442287,1756199437728,-3396.10384288,0.00024258,2]
[381442302,1756199437978,-2038.49998678,0.00024258,2]
[381442426,1756199439529,-111.88926071,0.00024258,2]
[381442427,1756199439538,-734.86,0.00024272,2]
[381442428,1756199439548,-539.0,0.0002463,2]
[381442429,1756199439557,-660.27283331,0.00024658,2]
[381442430,1756199439573,-339.72716669,0.00024658,2]
[381442431,1756199439583,-160.0,0.000248,3]
[381442432,1756199439592,-844.63891918,0.000248,3]
[381442433,1756199439601,-18.60700485,0.000248,3]
[381442434,1756199439612,-141.39299515,0.000248,3]
[381442435,1756199439621,-212.18043798,0.000248,3]
[381442436,1756199439630,-628.32246172,0.000248,3]
[381442437,1756199439664,-1034.6788,0.000248,3]
[381442438,1756199439675,-1464.47085665,0.000248,3]
[381442439,1756199439686,-27767.94183903,0.000248,3]
[381442440,1756199439695,-458.7662338,0.000248,3]
[381442441,1756199439705,-599.70609208,0.00024872,2]
[381442442,1756199439714,-18111.63748836,0.000249,2]
[381442443,1756199439725,-189.12340163,0.00025497,2]
[381442444,1756199439734,-30895.4139574,0.00025587,3]
[381442445,1756199439743,-18111.63748829,0.00025597,3]
[381442446,1756199439754,-734.86,0.00025623,7]
[381442447,1756199439765,-504.0,0.00025767,2]
[381442448,1756199439775,-503.0,0.00025767,2]
[381442449,1756199439785,-1057.87,0.00026,2]
[381442450,1756199439794,-599.70609208,0.00026121,2]
[381442451,1756199439804,-160.0,0.00026274,3]
[381442452,1756199439813,-212.18043798,0.00026274,3]
[381442453,1756199439822,-181.62159738,0.00026292,2]
[381442454,1756199439832,-638.81869517,0.00026292,2]
[381442455,1756199439841,-237.02880109,0.00026292,2]
[381442456,1756199439851,-900.0,0.00026293,10]
[381442457,1756199439860,-900.0,0.00026293,10]
[381442458,1756199439871,-900.0,0.00026293,10]
[381442459,1756199439880,-900.0,0.00026293,10]
[381442460,1756199439889,-900.0,0.00026293,10]
[381442461,1756199439898,-900.0,0.00026293,10]
[381442462,1756199439907,-900.0,0.00026293,10]
[381442463,1756199439916,-900.0,0.00026293,10]
[381442464,1756199439926,-844.63891918,0.00026293,10]
[381442465,1756199439936,-160.0,0.00026293,10]
[381442466,1756199439946,-212.18043798,0.00026293,10]
[381442467,1756199439955,-18111.63748829,0.00026293,5]
[381442468,1756199439964,-1000.0,0.000266,2]
[381442469,1756199439974,-734.86,0.00026974,7]
[381442470,1756199439984,-160.0,0.0002698,3]
[381442471,1756199439994,-18111.63748829,0.0002699,6]
[381442472,1756199440004,-900.0,0.0002701,10]
[381442473,1756199440014,-900.0,0.0002701,10]
[381442474,1756199440024,-900.0,0.0002701,10]
[381442475,1756199440034,-900.0,0.0002701,10]
[381442476,1756199440044,-900.0,0.0002701,10]
[381442477,1756199440054,-900.0,0.0002701,10]
[381442478,1756199440063,-900.0,0.0002701,10]
[381442479,1756199440072,-340.31187876,0.0002701,10]
[381442480,1756199440092,-500.0,0.00027133,2]
[381442481,1756199440108,-217.7069003,0.00027133,2]
[381442482,1756199440117,-30895.4139574,0.00027248,3]
[381442483,1756199440126,-150.0,0.00027249,2]
[381442484,1756199440136,-150.0,0.00027258,2]
[381442485,1756199440145,-150.0,0.00027258,2]
[381442486,1756199440156,-3374.0,0.00027258,2]
[381442487,1756199440165,-455.127,0.00027258,2]
[381442488,1756199440174,-566.0,0.00027258,2]
[381442489,1756199440184,-1298.0,0.00027258,2]
[381442490,1756199440193,-1658.0,0.00027258,2]
[381442491,1756199440203,-599.0,0.00027258,2]
[381442492,1756199440212,-4155.0,0.00027258,2]
[381442493,1756199440222,-1057.87,0.000273,2]
[381442494,1756199440236,-599.70609208,0.00027371,2]
[381442495,1756199440245,-500.0,0.00027397,2]
[381442496,1756199440254,-500.0,0.00027397,2]
[381442497,1756199440263,-500.0,0.00027397,2]
[381442498,1756199440274,-643.32135571,0.00027397,2]
[381442499,1756199440284,-500.0,0.00027397,2]
[381442500,1756199440294,-500.0,0.00027397,2]
[381442501,1756199440304,-500.0,0.00027397,2]
[381442502,1756199440314,-500.0,0.00027397,2]
[381442503,1756199440323,-500.0,0.00027397,2]
[381442504,1756199440334,-500.0,0.00027397,2]
[381442505,1756199440356,-162.37,0.00027397,80]
[381442506,1756199440375,-300.0,0.00027397,2]
[381442507,1756199440387,-200.0,0.00027397,5]
[381442508,1756199440398,-4385.245,0.00027658,17]
[381442509,1756199440409,-369.948,0.00027658,17]
[381442510,1756199440418,-1000.0,0.00027681,5]
[381442511,1756199440428,-18111.63748829,0.00027687,8]
[381442512,1756199440438,-500.0,0.00027733,5]
[381442513,1756199440447,-500.0,0.00027733,2]
[381442514,1756199440457,-500.0,0.00027733,5]
[381442515,1756199440467,-500.0,0.00027733,5]
[381442516,1756199440477,-172.0,0.00028,2]
[381442517,1756199440486,-172.0,0.00028,2]
[381442518,1756199440496,-172.0,0.00028,2]
[381442519,1756199440506,-308.95,0.00028,2]
[381442520,1756199440515,-177.40922456,0.00028117,2]
[381442521,1756199440524,-2082.0,0.0002813,2]
[381442522,1756199440534,-185.87,0.00028194,2]
[381442523,1756199440543,-832.37,0.00028219,7]
[381442524,1756199440553,-500.0,0.00028229,5]
[381442525,1756199440562,-1000.0,0.00028281,5]
[381442526,1756199440572,-447.08811952,0.00028281,2]
[381442527,1756199440581,-1000.0,0.00028281,5]
[381442528,1756199440591,-1000.0,0.00028281,5]
[381442529,1756199440600,-734.86,0.00028325,30]
[381442530,1756199440612,-22074.5181516,0.00028364,3]
[381442531,1756199440621,-30895.4139574,0.00028374,3]
[381442532,1756199440632,-18111.63748829,0.00028384,9]
[381442533,1756199440641,-2082.0,0.0002842,2]
[381442534,1756199440651,-344.2,0.000285,2]
[381442535,1756199440660,-1057.87,0.000286,30]
[381442536,1756199440671,-599.70609208,0.0002862,2]
[381442537,1756199440680,-1279.35857427,0.00028668,4]
[381442538,1756199440690,-2082.0,0.0002871,2]
[381442539,1756199440700,-1500.0,0.00028829,5]
[381442540,1756199440709,-968.83319447,0.00028829,5]
[381442541,1756199440718,-174.52065844,0.00028829,5]
[381442542,1756199440728,-832.37,0.00028904,9]
[381442543,1756199440739,-504.0,0.00028957,5]
[381442544,1756199440748,-22074.5181516,0.0002896,3]
[381442545,1756199440757,-500.0,0.0002897,2]
[381442546,1756199440767,-167.0,0.00029,30]
[381442547,1756199440777,-2082.0,0.00029,2]
[381442548,1756199440786,-702.18729501,0.00029,2]
[381442549,1756199440795,-167.0,0.00029,30]
[381442550,1756199440805,-167.0,0.00029,30]
[381442551,1756199440815,-18111.63748829,0.0002908,11]
[381442552,1756199440825,-1000.0,0.0002926,2]
[381442553,1756199440834,-2082.0,0.0002929,2]
[381442554,1756199440844,-2000.0,0.00029377,5]
[381442555,1756199440853,-2002.77,0.000294,7]
[381442556,1756199440863,-300.0,0.000295,2]
[381442557,1756199440872,-2082.0,0.0002958,2]
[381442558,1756199440882,-832.37,0.00029589,11]
[381442559,1756199440891,-734.86,0.00029676,30]
[381442560,1756199440901,-4545.6471775,0.00029757,3]
[381442565,1756199442450,-12460.43592955,0.00029757,3]
[381442566,1756199442462,-1025.06710056,0.00029757,3]
[381442568,1756199442486,-863.417598,0.00029757,3]
[381442576,1756199443442,-523.86714,0.00022055,2]
[381442577,1756199443453,-477.02,0.00022055,2]
[381442578,1756199443467,-172.11286,0.00022055,2]
[381442579,1756199443477,-1173.0,0.00025055,2]
[381442580,1756199443486,-1805.62067402,0.00029757,3]
[381442581,1756199443498,-297.86,0.00029757,3]
[381442582,1756199443509,-1076.46967197,0.00029757,3]
[381442583,1756199443519,-30895.4139574,0.00029767,3]
[381442584,1756199443528,-18111.63748829,0.00029777,12]
[381442585,1756199443538,-599.70609208,0.0002987,2]
[381442586,1756199443652,-2082.0,0.0002987,2]
[381442587,1756199443661,-699.65794087,0.00029925,5]
[381442588,1756199443671,-4000.0,0.0003,10]
[381442589,1756199443680,-167.0,0.0003,30]
[381442590,1756199443690,-167.0,0.0003,30]
[381442591,1756199443701,-167.0,0.0003,30]
[381442592,1756199443710,-221.0,0.0003021,30]
[381442593,1756199443719,-22074.5181516,0.00030229,3]
[381442594,1756199443728,-2030.0,0.00030239,5]
[381442595,1756199443737,-150.0,0.00030249,2]
[381442596,1756199443746,-3364.188,0.00030258,2]
[381442597,1756199443755,-566.0,0.00030258,2]
[381442598,1756199443764,-563.965,0.00030258,2]
[381442599,1756199443773,-1638.644,0.00030258,2]
[381442600,1756199443784,-438.479,0.00030258,2]
[381442601,1756199443793,-4155.0,0.00030258,2]
[381442602,1756199443803,-832.37,0.00030273,13]
[381442603,1756199443812,-900.0,0.00030309,7]
[381442604,1756199443821,-900.0,0.00030309,7]
[381442605,1756199443831,-2400.0,0.00030309,7]
[381442606,1756199443840,-150.0,0.00030329,7]
[381442607,1756199443849,-150.0,0.00030329,7]
[381442608,1756199443859,-150.0,0.00030329,7]
[381442609,1756199443869,-150.0,0.00030329,7]
[381442610,1756199443878,-150.0,0.00030329,7]
[381442611,1756199443886,-150.0,0.00030329,7]
[381442612,1756199443895,-150.0,0.00030329,7]
[381442613,1756199443905,-150.0,0.00030329,7]
[381442614,1756199443914,-150.56792865,0.00030329,7]
[381442615,1756199443924,-150.0,0.00030329,7]
[381442616,1756199443933,-150.0,0.00030329,7]
[381442617,1756199443942,-150.0,0.00030329,7]
[381442618,1756199443951,-22074.5181516,0.00030434,3]
[381442619,1756199443960,-30895.4139574,0.00030444,3]
[381442620,1756199443970,-1000.0,0.00030463,2]
[381442621,1756199443979,-18111.63748829,0.00030474,14]
[381442622,1756199443989,-300.0,0.000305,3]
[381442623,1756199443999,-150.35765461,0.00030686,2]
[381442624,1756199444008,-500.0,0.00030686,2]
[381442625,1756199444018,-150.0,0.00030686,2]
[381442626,1756199444027,-150.0,0.00030686,2]
[381442627,1756199444036,-275.31885085,0.00030686,2]
[381442628,1756199444046,-150.0,0.00030686,2]
[381442629,1756199444055,-500.0,0.00030686,2]
[381442630,1756199444064,-500.0,0.00030686,2]
[381442631,1756199444073,-150.0,0.00030686,2]
[381442632,1756199444083,-150.0,0.00030686,2]
[381442633,1756199444092,-150.0,0.00030686,2]
[381442634,1756199444101,-150.0,0.00030686,2]
[381442635,1756199444110,-150.0,0.00030686,2]
[381442636,1756199444119,-150.0,0.00030686,2]
[381442637,1756199444129,-150.0,0.00030686,2]
[381442638,1756199444138,-150.0,0.00030686,2]
[381442639,1756199444147,-150.0,0.00030686,2]
[381442640,1756199444156,-150.0,0.00030686,2]
[381442641,1756199444165,-500.0,0.00030686,2]
[381442642,1756199444175,-300.0,0.00030686,2]
[381442643,1756199444185,-150.0,0.00030686,2]
[381442644,1756199444194,-500.0,0.00030686,2]
[381442645,1756199444204,-500.0,0.00030686,2]
[381442646,1756199444213,-150.0,0.00030686,2]
[381442647,1756199444222,-500.0,0.00030686,2]
[381442648,1756199444236,-150.0,0.00030686,2]
[381442649,1756199444246,-881.0,0.00030686,2]
[381442650,1756199444256,-729.0,0.00030686,2]
[381442651,1756199444265,-500.0,0.00030686,2]
[381442652,1756199444275,-1562.0,0.00030686,2]
[381442653,1756199444284,-500.0,0.00030686,2]
[381442654,1756199444292,-500.0,0.00030686,2]
[381442655,1756199444302,-500.0,0.00030686,2]
[381442656,1756199444312,-500.0,0.00030686,2]
[381442657,1756199444322,-500.0,0.00030686,2]
[381442658,1756199444331,-162.37,0.00030822,80]
[381442659,1756199444340,-832.37,0.00030958,15]
[381442660,1756199444349,-609.89327915,0.0003096,2]
[381442661,1756199444358,-150.0,0.0003096,2]
[381442662,1756199444367,-150.0,0.0003096,2]
[381442663,1756199444376,-500.0,0.0003096,2]
[381442664,1756199444385,-500.0,0.0003096,2]
[381442665,1756199444395,-150.0,0.0003096,2]
[381442666,1756199444404,-150.0,0.0003096,2]
[381442667,1756199444413,-206.88509526,0.0003096,2]
[381442668,1756199444423,-150.0,0.0003096,2]
[381442669,1756199444432,-150.45272974,0.0003096,2]
[381442670,1756199444441,-150.0,0.0003096,2]
[381442671,1756199444452,-201.76080023,0.0003096,2]
[381442672,1756199444461,-150.0,0.0003096,2]
[381442673,1756199444470,-150.0,0.0003096,2]
[381442674,1756199444479,-150.0,0.0003096,2]
[381442675,1756199444488,-500.0,0.0003096,2]
[381442676,1756199444496,-300.0,0.0003096,2]
[381442677,1756199444506,-500.0,0.0003096,2]
[381442678,1756199444515,-390.14083791,0.0003096,2]
[381442679,1756199444524,-357.7576891,0.0003096,2]
[381442680,1756199444534,-881.0,0.0003096,2]
[381442681,1756199444543,-729.0,0.0003096,2]
[381442682,1756199444552,-500.0,0.0003096,2]
[381442683,1756199444562,-1562.0,0.0003096,2]
[381442684,1756199444571,-592.0,0.0003096,2]
[381442685,1756199444580,-500.0,0.0003096,2]
[381442686,1756199444590,-500.0,0.0003096,2]
[381442687,1756199444599,-500.0,0.0003096,2]
[381442688,1756199444609,-500.0,0.0003096,2]
[381442689,1756199444618,-4500.0,0.00031,10]
[381442690,1756199444627,-167.0,0.00031,30]
[381442691,1756199444636,-167.0,0.00031,30]
[381442692,1756199444645,-167.0,0.00031,30]
[381442693,1756199444654,-734.86,0.00031027,30]
[381442694,1756199444663,-221.0,0.0003104,30]
[381442695,1756199444672,-241.0,0.000311,2]
[381442696,1756199444681,-381.0,0.000311,2]
[381442697,1756199444690,-778.0,0.000311,2]
[381442698,1756199444699,-599.70609208,0.00031119,2]
[381442699,1756199444709,-900.0,0.00031131,7]
[381442700,1756199444718,-900.0,0.00031131,7]
[381442701,1756199444727,-2400.0,0.00031131,7]
[381442702,1756199444737,-22074.5181516,0.00031151,3]
[381442703,1756199444746,-30895.4139574,0.00031161,3]
[381442704,1756199444755,-18111.63748829,0.00031171,15]
[381442705,1756199444764,-150.0,0.00031173,5]
[381442706,1756199444773,-150.0,0.00031234,2]
[381442707,1756199444782,-202.89796127,0.00031234,2]
[381442708,1756199444791,-500.0,0.00031234,2]
[381442709,1756199444801,-500.0,0.00031234,2]
[381442710,1756199444810,-200.0,0.00031234,2]
[381442711,1756199444820,-203.87608793,0.00031234,2]
[381442712,1756199444828,-150.0,0.00031234,2]
[381442713,1756199444837,-150.0,0.00031234,2]
[381442714,1756199444846,-150.0,0.00031234,2]
[381442715,1756199444856,-150.0,0.00031234,2]
[381442716,1756199444865,-500.0,0.00031234,2]
[381442717,1756199444874,-300.0,0.00031234,2]
[381442718,1756199444883,-500.0,0.00031234,2]
[381442719,1756199444892,-881.0,0.00031234,2]
[381442720,1756199444901,-729.0,0.00031234,2]
[381442721,1756199444911,-500.0,0.00031234,2]
[381442722,1756199444920,-1562.0,0.00031234,2]
[381442723,1756199444930,-500.0,0.00031234,2]
[381442724,1756199444939,-500.0,0.00031234,2]
[381442725,1756199444949,-374.88718997,0.00031234,2]
[381442726,1756199444960,-500.0,0.00031234,2]
[381442727,1756199444970,-22074.5181516,0.00031259,3]
[381442728,1756199444979,-5000.0,0.00031269,2]
[381442729,1756199444988,-1000.0,0.00031422,2]
[381442730,1756199444998,-189.12340161,0.00031467,15]
[381442731,1756199445007,-300.0,0.000315,5]
[381442732,1756199445018,-300.0,0.000315,2]
[381442733,1756199445029,-300.0,0.000315,2]
[381442734,1756199445038,-300.0,0.000315,2]
[381442735,1756199445048,-300.0,0.000315,2]
[381442736,1756199445057,-332.90599351,0.000315,2]
[381442737,1756199445067,-150.0,0.00031508,2]
[381442738,1756199445076,-500.0,0.00031508,2]
[381442739,1756199445085,-150.0,0.00031508,2]
[381442740,1756199445094,-150.0,0.00031508,2]
[381442741,1756199445104,-150.0,0.00031508,2]
[381442742,1756199445113,-150.0,0.00031508,2]
[381442743,1756199445123,-150.0,0.00031508,2]
[381442744,1756199445133,-300.0,0.00031508,2]
[381442745,1756199445143,-500.0,0.00031508,2]
[381442746,1756199445152,-881.0,0.00031508,2]
[381442747,1756199445163,-729.0,0.00031508,2]
[381442748,1756199445173,-500.0,0.00031508,2]
[381442749,1756199445182,-1562.0,0.00031508,2]
[381442750,1756199445191,-500.0,0.00031508,2]
[381442751,1756199445201,-518.61294035,0.00031508,2]
[381442752,1756199445210,-832.37,0.00031643,17]
[381442753,1756199445219,-250.0,0.00031721,5]
[381442754,1756199445231,-340.3229461,0.00031767,2]
[381442755,1756199445243,-150.0,0.00031782,2]
[381442756,1756199445254,-500.0,0.00031782,2]
[381442757,1756199445267,-238.0,0.00031782,2]
[381442758,1756199445276,-150.0,0.00031782,2]
[381442759,1756199445286,-173.86541611,0.00031782,2]
[381442760,1756199445297,-150.0,0.00031782,2]
[381442762,1756199445309,-153.14383106,0.00031782,2]
[381442763,1756199445318,-500.0,0.00031782,2]
[381442764,1756199445329,-881.0,0.00031782,2]
[381442765,1756199445339,-729.0,0.00031782,2]
[381442766,1756199445349,-500.0,0.00031782,2]
[381442767,1756199445360,-1562.0,0.00031782,2]
[381442768,1756199445372,-500.0,0.00031782,2]
[381442769,1756199445382,-30895.4139574,0.00031853,3]
[381442770,1756199445391,-22074.5181516,0.00031857,3]
[381442771,1756199445401,-221.0,0.0003186,30]
[381442772,1756199445411,-18111.63748829,0.00031867,17]
[381442773,1756199445421,-34137.332752,0.00031873,2]
[381442774,1756199445430,-1678.5475587,0.00031873,2]
[381442775,1756199445443,-156.48,0.000319,7]
[381442776,1756199445453,-1000.0,0.0003192,2]
[381442777,1756199445462,-22074.5181516,0.00031943,3]
[381442779,1756199445471,-900.0,0.00031953,7]
[381442780,1756199445481,-900.0,0.00031953,7]
[381442781,1756199445490,-2400.0,0.00031953,7]
[381442782,1756199445499,-173.79,0.00031954,2]
[381442783,1756199445509,-332.22,0.00031966,2]
[381442784,1756199445518,-166.12,0.00031966,2]
[381442785,1756199445527,-331.95,0.00031966,2]
[381442786,1756199445536,-150.0,0.00031983,120]
[381442787,1756199445546,-30895.4139574,0.00031988,3]
[381442788,1756199445555,-152.92,0.00031988,2]
[381442789,1756199445566,-163.11020026,0.00031988,2]
[381442790,1756199445575,-22074.5181516,0.00031998,3]
[381442791,1756199445583,-167.0,0.00032,30]
[381442792,1756199445593,-167.0,0.00032,30]
[381442793,1756199445602,-160.0,0.00032,7]
[381442794,1756199445612,-167.0,0.00032,30]
[381442795,1756199445622,-3952.58,0.00032008,15]
[381442796,1756199445634,-3952.58,0.00032008,15]
[381442797,1756199445644,-3952.58,0.00032008,15]
[381442798,1756199445653,-3952.58,0.00032008,15]
[381442799,1756199445664,-250.0,0.00032056,2]
[381442800,1756199445674,-500.0,0.00032056,2]
[381442801,1756199445683,-250.0,0.00032056,2]
[381442802,1756199445692,-250.0,0.00032056,2]
[381442803,1756199445701,-500.0,0.00032056,2]
[381442804,1756199445710,-881.0,0.00032056,2]
[381442805,1756199445719,-729.0,0.00032056,2]
[381442806,1756199445728,-1562.0,0.00032056,2]
[381442807,1756199445737,-500.0,0.00032056,2]
[381442808,1756199445747,-150.0,0.00032117,120]
[381442809,1756199445760,-504.0,0.00032147,8]
[381442810,1756199445770,-150.0,0.00032213,120]
[381442811,1756199445781,-350.0,0.00032268,5]
[381442812,1756199445790,-3952.58,0.00032282,15]
[381442813,1756199445799,-3952.58,0.00032282,15]
[381442814,1756199445808,-832.37,0.00032328,19]
[381442815,1756199445818,-500.0,0.0003233,2]
[381442816,1756199445827,-500.0,0.0003233,2]
[381442817,1756199445836,-881.0,0.0003233,2]
[381442818,1756199445847,-729.0,0.0003233,2]
[381442819,1756199445859,-1562.0,0.0003233,2]
[381442820,1756199445870,-500.0,0.0003233,2]
[381442821,1756199445880,-185.87,0.00032359,2]
[381442822,1756199445889,-946.20203785,0.00032359,2]
[381442823,1756199445898,-599.70609208,0.00032369,2]
[381442824,1756199445907,-734.86,0.00032378,30]
[381442825,1756199445916,-1000.0,0.00032381,2]
[381442826,1756199445925,-946.20203785,0.00032459,2]
[381442827,1756199445934,-300.0,0.000325,6]
[381442828,1756199445946,-22074.5181516,0.00032526,3]
[381442829,1756199445955,-30895.4139574,0.00032536,3]
[381442830,1756199445965,-3952.58,0.00032556,15]
[381442831,1756199445974,-3952.58,0.00032556,15]
[381442833,1756199445984,-946.20203785,0.00032559,2]
[381442836,1756199445994,-18111.63748829,0.00032564,18]
[381442839,1756199446003,-902.74202846,0.00032589,2]
[381442842,1756199446012,-156.48,0.000326,7]
[381442844,1756199446021,-500.0,0.00032604,2]
[381442845,1756199446032,-500.0,0.00032604,2]